[Event "European Rapid Championship 2021"]
[Site "Katowice"]
[Date "2021.12.19"]
[Round "9.23"]
[White "Papasimakopoulos, Alexandros"]
[Black "Lukasiewicz, Krzysztof"]
[Result "1-0"]
[ECO "E32"]
[WhiteElo "2274"]
[BlackElo "2251"]
[Annotator "NA"]
[PlyCount "67"]
[EventDate "2021.12.18"]
[EventType "swiss"]
[EventCountry "POL"]
[SourceTitle "playchess.com"]
[Source "ChessBase"]
[SourceQuality "1"]
[TimeControl "900+10"]

1. d4 {[%emt 0:00:02]} Nf6 {[%emt 0:00:01]} 2. c4 {[%emt 0:00:04]} e6 {[%emt 0:
00:01]} 3. Nc3 {[%emt 0:00:01]} Bb4 {[%emt 0:00:02]} 4. Qc2 {[%emt 0:00:01]}
O-O {[%emt 0:00:02]} 5. a3 {[%emt 0:00:01]} Bxc3+ {[%emt 0:00:10]} 6. Qxc3 {
[%emt 0:00:01]} d6 {[%emt 0:00:19]} 7. f3 {[%emt 0:00:02]} c5 {[%emt 0:00:18]}
8. dxc5 {[%emt 0:00:02]} dxc5 {[%emt 0:00:01]} 9. Bf4 {[%emt 0:00:02]} Re8 {
[%emt 0:01:08]} 10. Rd1 {[%emt 0:00:06]} Qb6 {[%emt 0:00:01]} 11. e3 {[%emt 0:
00:08]} Nc6 {[%emt 0:00:19]} 12. Bg5 {[%emt 0:00:01]} Nd7 {[%emt 0:00:13]} 13.
Nh3 {[%emt 0:00:31]} f6 {[%emt 0:00:19]} 14. Bh4 {[%emt 0:00:08]} e5 {[%emt 0:
00:05]} 15. Bd3 {[%emt 0:00:09]} Nf8 {[%emt 0:00:01]} 16. Nf2 {[%emt 0:00:07]}
Be6 {[%emt 0:00:07]} 17. O-O {[%emt 0:00:09]} Rad8 {[%emt 0:01:49]} 18. Ne4 {
[%emt 0:00:31]} Rd7 {[%emt 0:01:47]} 19. Bxf6 {[%emt 0:00:06]} gxf6 {[%emt 0:
00:01]} 20. Nxf6+ {[%emt 0:00:01]} Kf7 {[%emt 0:00:00]} 21. Nxd7 {[%emt 0:00:
12]} Bxd7 {[%emt 0:00:04]} 22. Bxh7 {[%emt 0:00:20]} Ke7 {[%emt 0:00:21]} 23.
Be4 {[%emt 0:00:06]} Kd8 {[%emt 0:00:03]} 24. Rd6 {[%emt 0:00:43]} Kc8 {
[%emt 0:00:17]} 25. b4 {[%emt 0:02:12]} cxb4 {[%emt 0:00:23]} 26. axb4 {
[%emt 0:00:02]} Qc7 {[%emt 0:00:29]} 27. c5 {[%emt 0:00:06]} Re6 {[%emt 0:03:
36]} 28. Rfd1 {[%emt 0:00:09]} Rxd6 {[%emt 0:00:01]} 29. Rxd6 {[%emt 0:00:04]}
Nd8 {[%emt 0:01:12]} 30. Bd5 {[%emt 0:00:50]} a5 {[%emt 0:00:26]} 31. bxa5 {
[%emt 0:00:14]} Nfe6 {[%emt 0:00:01]} 32. a6 {[%emt 0:00:24]} b5 {[%emt 0:00:
44]} 33. a7 {[%emt 0:00:46]} Qxa7 {[%emt 0:00:04]} 34. c6 {[%emt 0:00:02]} 1-0

[Event "European Rapid Championship 2021"]
[Site "Katowice"]
[Date "2021.12.19"]
[Round "9.23"]
[White "Kuegel, Tobias"]
[Black "Lis, Mateusz"]
[Result "1/2-1/2"]
[ECO "B20"]
[WhiteElo "2242"]
[BlackElo "1983"]
[Annotator "NA"]
[PlyCount "89"]
[EventDate "2021.12.18"]
[EventType "swiss"]
[EventCountry "POL"]
[SourceTitle "playchess.com"]
[Source "ChessBase"]
[SourceQuality "1"]
[TimeControl "900+10"]

1. e4 {[%emt 0:03:10]} c5 {[%emt 0:00:02]} 2. c4 {[%emt 0:00:14]} Nc6 {[%emt 0:
00:17]} 3. Ne2 {[%emt 0:00:04]} d6 {[%emt 0:00:10]} 4. d4 {[%emt 0:00:02]} cxd4
{[%emt 0:00:07]} 5. Nxd4 {[%emt 0:00:02]} e6 {[%emt 0:00:02]} 6. Nc3 {[%emt 0:
00:05]} a6 {[%emt 0:00:01]} 7. Be2 {[%emt 0:00:05]} Nf6 {[%emt 0:00:01]} 8. O-O
{[%emt 0:00:11]} Be7 {[%emt 0:00:05]} 9. Be3 {[%emt 0:00:02]} Bd7 {[%emt 0:00:
19]} 10. Qd2 {[%emt 0:00:16]} Rc8 {[%emt 0:00:20]} 11. Nxc6 {[%emt 0:00:21]}
Bxc6 {[%emt 0:00:05]} 12. f3 {[%emt 0:00:03]} O-O {[%emt 0:00:06]} 13. Rfd1 {
[%emt 0:00:10]} Qc7 {[%emt 0:00:06]} 14. Rac1 {[%emt 0:00:08]} Qb8 {[%emt 0:00:
04]} 15. b4 {[%emt 0:01:02]} b5 {[%emt 0:00:34]} 16. cxb5 {[%emt 0:01:09]} axb5
{[%emt 0:00:01]} 17. a4 {[%emt 0:02:25]} bxa4 {[%emt 0:00:39]} 18. b5 {[%emt 0:
01:12]} Ba8 {[%emt 0:00:00]} 19. Nxa4 {[%emt 0:00:04]} d5 {[%emt 0:00:26]} 20.
Rxc8 {[%emt 0:00:25]} Rxc8 {[%emt 0:00:08]} 21. Nb6 {[%emt 0:00:10]} Rd8 {
[%emt 0:00:14]} 22. Nxa8 {[%emt 0:00:53]} dxe4 {[%emt 0:02:18]} 23. Qa2 {
[%emt 0:00:52]} Qxa8 {[%emt 0:00:04]} 24. Qxa8 {[%emt 0:00:09]} Rxa8 {[%emt 0:
00:01]} 25. fxe4 {[%emt 0:01:36]} e5 {[%emt 0:00:32]} 26. b6 {[%emt 0:00:43]}
Rb8 {[%emt 0:00:19]} 27. Bf3 {[%emt 0:02:03]} Kf8 {[%emt 0:00:19]} 28. g4 {
[%emt 0:00:10]} h6 {[%emt 0:00:26]} 29. h4 {[%emt 0:01:21]} Ne8 {[%emt 0:00:55]
} 30. g5 {[%emt 0:00:18]} hxg5 {[%emt 0:00:02]} 31. hxg5 {[%emt 0:00:01]} Nd6 {
[%emt 0:00:02]} 32. Rb1 {[%emt 0:00:24]} Nc4 {[%emt 0:00:26]} 33. Kf2 {[%emt 0:
00:14]} Nxe3 {[%emt 0:00:04]} 34. Kxe3 {[%emt 0:00:03]} Bc5+ {[%emt 0:00:04]}
35. Ke2 {[%emt 0:00:02]} Rxb6 {[%emt 0:00:01]} 36. Rxb6 {[%emt 0:00:02]} Bxb6 {
[%emt 0:00:01]} 37. Bg4 {[%emt 0:00:07]} Bd8 {[%emt 0:00:02]} 38. g6 {[%emt 0:
00:03]} fxg6 {[%emt 0:00:05]} 39. Kf3 {[%emt 0:00:07]} Ke7 {[%emt 0:00:02]} 40.
Bh3 {[%emt 0:00:08]} Kd6 {[%emt 0:00:47]} 41. Kg4 {[%emt 0:00:02]} Kc5 {
[%emt 0:00:01]} 42. Bg2 {[%emt 0:00:02]} Kd4 {[%emt 0:00:01]} 43. Bh1 {[%emt 0:
00:01]} Ke3 {[%emt 0:00:01]} 44. Bg2 {[%emt 0:00:02]} Bf6 {[%emt 0:00:01]} 45.
Bh1 {[%emt 0:00:03]} 1/2-1/2

[Event "European Rapid Championship 2021"]
[Site "Katowice"]
[Date "2021.12.19"]
[Round "9.24"]
[White "Molenda, Marcin"]
[Black "Dwilewicz, Katarzyna"]
[Result "1/2-1/2"]
[ECO "A18"]
[WhiteElo "2365"]
[BlackElo "1981"]
[Annotator "NA"]
[PlyCount "66"]
[EventDate "2021.12.18"]
[EventType "swiss"]
[EventCountry "POL"]
[SourceTitle "playchess.com"]
[Source "ChessBase"]
[SourceQuality "1"]
[TimeControl "900+10"]

1. c4 {[%emt 0:00:03]} Nf6 {[%emt 0:00:04]} 2. Nc3 {[%emt 0:00:02]} e6 {
[%emt 0:00:03]} 3. e4 {[%emt 0:00:12]} d5 {[%emt 0:00:03]} 4. e5 {[%emt 0:00:
01]} d4 {[%emt 0:00:15]} 5. exf6 {[%emt 0:00:02]} dxc3 {[%emt 0:00:02]} 6. bxc3
{[%emt 0:00:02]} Qxf6 {[%emt 0:00:13]} 7. d4 {[%emt 0:00:02]} e5 {[%emt 0:00:
06]} 8. Nf3 {[%emt 0:00:15]} exd4 {[%emt 0:00:04]} 9. Bg5 {[%emt 0:01:11]} Qe6+
{[%emt 0:00:02]} 10. Be2 {[%emt 0:00:02]} Be7 {[%emt 0:00:07]} 11. Bxe7 {
[%emt 0:00:35]} d3 {[%emt 0:00:04]} 12. O-O {[%emt 0:03:44]} Qxe7 {[%emt 0:00:
03]} 13. Bxd3 {[%emt 0:00:10]} O-O {[%emt 0:00:03]} 14. Re1 {[%emt 0:00:25]}
Qf6 {[%emt 0:00:03]} 15. Ne5 {[%emt 0:01:28]} Nc6 {[%emt 0:02:12]} 16. Nxc6 {
[%emt 0:01:04]} Qxc6 {[%emt 0:00:04]} 17. Rb1 {[%emt 0:00:02]} Be6 {[%emt 0:02:
35]} 18. Qc2 {[%emt 0:00:35]} g6 {[%emt 0:01:19]} 19. Be4 {[%emt 0:00:16]} Qxc4
{[%emt 0:00:12]} 20. Rxb7 {[%emt 0:00:02]} a5 {[%emt 0:03:39]} 21. a3 {[%emt 0:
00:58]} Rab8 {[%emt 0:00:17]} 22. Reb1 {[%emt 0:00:44]} Rxb7 {[%emt 0:00:09]}
23. Rxb7 {[%emt 0:00:03]} Rd8 {[%emt 0:00:26]} 24. h3 {[%emt 0:00:31]} Kg7 {
[%emt 0:02:47]} 25. Bf3 {[%emt 0:03:23]} Qc5 {[%emt 0:01:03]} 26. a4 {[%emt 0:
00:40]} Bf5 {[%emt 0:01:05]} 27. Qb2 {[%emt 0:00:39]} Qe5 {[%emt 0:01:27]} 28.
c4 {[%emt 0:01:14]} Qxb2 {[%emt 0:00:05]} 29. Rxb2 {[%emt 0:00:01]} Rd4 {
[%emt 0:00:09]} 30. Be2 {[%emt 0:00:52]} Be6 {[%emt 0:00:25]} 31. Rb5 {[%emt 0:
00:27]} Bxc4 {[%emt 0:00:12]} 32. Bxc4 {[%emt 0:00:02]} Rxc4 {[%emt 0:00:01]}
33. Rxa5 {[%emt 0:00:01]} Rc1+ {[%emt 0:00:13]} 1/2-1/2

[Event "European Rapid Championship 2021"]
[Site "Katowice"]
[Date "2021.12.19"]
[Round "9.24"]
[White "Krawczyk, Wojciech"]
[Black "Szpar, Milosz"]
[Result "0-1"]
[ECO "E20"]
[WhiteElo "1868"]
[BlackElo "2315"]
[Annotator "NA"]
[PlyCount "86"]
[EventDate "2021.12.18"]
[EventType "swiss"]
[EventCountry "POL"]
[SourceTitle "playchess.com"]
[Source "ChessBase"]
[SourceQuality "1"]
[TimeControl "900+10"]

1. d4 {[%emt 0:00:02]} Nf6 {[%emt 0:00:02]} 2. c4 {[%emt 0:00:02]} e6 {[%emt 0:
00:03]} 3. Nc3 {[%emt 0:00:03]} Bb4 {[%emt 0:00:13]} 4. Bd2 {[%emt 0:00:23]}
O-O {[%emt 0:00:08]} 5. Nf3 {[%emt 0:00:02]} d5 {[%emt 0:00:11]} 6. e3 {
[%emt 0:00:16]} b6 {[%emt 0:00:08]} 7. a3 {[%emt 0:00:09]} Bd6 {[%emt 0:00:20]}
8. b4 {[%emt 0:01:01]} c5 {[%emt 0:01:11]} 9. bxc5 {[%emt 0:00:17]} bxc5 {
[%emt 0:00:02]} 10. cxd5 {[%emt 0:00:07]} exd5 {[%emt 0:00:23]} 11. dxc5 {
[%emt 0:00:44]} Bxc5 {[%emt 0:00:02]} 12. Na4 {[%emt 0:00:23]} Bd6 {[%emt 0:00:
13]} 13. Bb4 {[%emt 0:01:07]} Nc6 {[%emt 0:00:23]} 14. Bxd6 {[%emt 0:00:43]}
Qxd6 {[%emt 0:00:02]} 15. Be2 {[%emt 0:00:44]} Bd7 {[%emt 0:00:09]} 16. O-O {
[%emt 0:00:07]} Rfd8 {[%emt 0:00:14]} 17. Nc3 {[%emt 0:00:05]} Rac8 {[%emt 0:
00:26]} 18. Nb5 {[%emt 0:00:22]} Qe7 {[%emt 0:00:11]} 19. Qd2 {[%emt 0:00:47]}
Ne4 {[%emt 0:01:44]} 20. Qxd5 {[%emt 0:01:54]} Bg4 {[%emt 0:00:30]} 21. Qa2 {
[%emt 0:00:50]} a6 {[%emt 0:01:38]} 22. Nbd4 {[%emt 0:01:44]} Nxd4 {[%emt 0:00:
25]} 23. Nxd4 {[%emt 0:00:08]} Nc3 {[%emt 0:00:30]} 24. Qb2 {[%emt 0:00:14]}
Rxd4 {[%emt 0:01:05]} 25. Bxa6 {[%emt 0:01:24]} Rdd8 {[%emt 0:00:59]} 26. Bxc8
{[%emt 0:00:06]} Rxc8 {[%emt 0:00:03]} 27. Rac1 {[%emt 0:01:38]} Qf6 {[%emt 0:
01:30]} 28. f3 {[%emt 0:01:02]} Bd7 {[%emt 0:00:24]} 29. Rc2 {[%emt 0:00:10]}
Ba4 {[%emt 0:00:29]} 30. Rcc1 {[%emt 0:00:16]} h5 {[%emt 0:00:27]} 31. Rfe1 {
[%emt 0:01:14]} h4 {[%emt 0:00:33]} 32. h3 {[%emt 0:00:23]} Rc4 {[%emt 0:00:07]
} 33. e4 {[%emt 0:00:55]} Qe5 {[%emt 0:01:01]} 34. Kh1 {[%emt 0:00:45]} Qc7 {
[%emt 0:00:32]} 35. Re3 {[%emt 0:00:31]} Nxe4 {[%emt 0:00:35]} 36. Rxc4 {
[%emt 0:00:16]} Ng3+ {[%emt 0:00:02]} 37. Kg1 {[%emt 0:00:02]} Qxc4 {[%emt 0:
00:02]} 38. Qb1 {[%emt 0:00:18]} Qd4 {[%emt 0:00:34]} 39. Qb8+ {[%emt 0:00:09]}
Kh7 {[%emt 0:00:06]} 40. Qe5 {[%emt 0:00:05]} Qc4 {[%emt 0:00:37]} 41. Re1 {
[%emt 0:00:10]} f6 {[%emt 0:00:37]} 42. Qe3 {[%emt 0:00:12]} Bb5 {[%emt 0:00:
13]} 43. Kh2 {[%emt 0:00:14]} g5 0-1

[Event "European Rapid Championship 2021"]
[Site "Katowice"]
[Date "2021.12.19"]
[Round "9.25"]
[White "Sharankov, Grigory"]
[Black "Malczyk, Radoslaw"]
[Result "1-0"]
[ECO "E92"]
[WhiteElo "2220"]
[BlackElo "1926"]
[Annotator "NA"]
[PlyCount "123"]
[EventDate "2021.12.18"]
[EventType "swiss"]
[EventCountry "POL"]
[SourceTitle "playchess.com"]
[Source "ChessBase"]
[SourceQuality "1"]
[TimeControl "900+10"]

1. c4 {[%emt 0:00:02]} Nf6 {[%emt 0:00:01]} 2. Nc3 {[%emt 0:00:01]} g6 {
[%emt 0:00:01]} 3. e4 {[%emt 0:00:02]} d6 {[%emt 0:00:01]} 4. d4 {[%emt 0:00:
02]} Bg7 {[%emt 0:00:01]} 5. Nf3 {[%emt 0:00:01]} O-O {[%emt 0:00:02]} 6. Be2 {
[%emt 0:00:02]} e5 {[%emt 0:00:00]} 7. dxe5 {[%emt 0:00:10]} dxe5 {[%emt 0:00:
02]} 8. Qxd8 {[%emt 0:00:03]} Rxd8 {[%emt 0:00:01]} 9. Bg5 {[%emt 0:00:02]} Rf8
{[%emt 0:00:28]} 10. Nd5 {[%emt 0:03:15]} Nxd5 {[%emt 0:00:27]} 11. cxd5 {
[%emt 0:00:01]} c6 {[%emt 0:00:02]} 12. Bc4 {[%emt 0:00:03]} b5 {[%emt 0:00:10]
} 13. Bb3 {[%emt 0:00:08]} Bb7 {[%emt 0:01:32]} 14. Rc1 {[%emt 0:02:04]} Rc8 {
[%emt 0:00:20]} 15. O-O {[%emt 0:01:36]} c5 {[%emt 0:00:07]} 16. Rfd1 {[%emt 0:
02:23]} c4 {[%emt 0:00:13]} 17. Bc2 {[%emt 0:00:02]} f6 {[%emt 0:00:08]} 18.
Be3 {[%emt 0:00:09]} Bf8 {[%emt 0:00:38]} 19. g4 {[%emt 0:01:07]} g5 {[%emt 0:
00:45]} 20. Nd2 {[%emt 0:01:09]} Bc5 {[%emt 0:02:03]} 21. Nf1 {[%emt 0:00:02]}
Nd7 {[%emt 0:00:15]} 22. Ng3 {[%emt 0:00:16]} Bxe3 {[%emt 0:01:04]} 23. fxe3 {
[%emt 0:00:01]} a5 {[%emt 0:00:20]} 24. Nf5 {[%emt 0:00:06]} Rc5 {[%emt 0:00:
42]} 25. Kf2 {[%emt 0:01:03]} Bc8 {[%emt 0:00:17]} 26. d6 {[%emt 0:01:36]} Nf8
{[%emt 0:00:29]} 27. Kf3 {[%emt 0:01:05]} Bxf5 {[%emt 0:00:14]} 28. exf5 {
[%emt 0:00:01]} Nd7 {[%emt 0:00:47]} 29. Be4 {[%emt 0:00:02]} Ra7 {[%emt 0:00:
01]} 30. a4 {[%emt 0:00:24]} Nb6 {[%emt 0:00:56]} 31. axb5 {[%emt 0:00:16]}
Rxb5 {[%emt 0:01:29]} 32. Bc6 {[%emt 0:00:14]} Rxb2 {[%emt 0:00:01]} 33. d7 {
[%emt 0:00:03]} Nxd7 {[%emt 0:00:02]} 34. Bxd7 {[%emt 0:00:12]} Rxh2 {[%emt 0:
00:18]} 35. Rxc4 {[%emt 0:01:03]} h5 {[%emt 0:00:09]} 36. gxh5 {[%emt 0:00:24]}
Rxh5 {[%emt 0:00:02]} 37. Be6+ {[%emt 0:00:30]} Kg7 {[%emt 0:00:03]} 38. Rd8 {
[%emt 0:00:05]} Rh3+ {[%emt 0:00:09]} 39. Ke2 {[%emt 0:00:04]} Rh8 {[%emt 0:00:
27]} 40. Rxh8 {[%emt 0:00:23]} Kxh8 {[%emt 0:00:01]} 41. Ra4 {[%emt 0:00:03]}
Kg7 {[%emt 0:00:04]} 42. Kf3 {[%emt 0:00:00]} Kh6 {[%emt 0:00:09]} 43. Kg4 {
[%emt 0:00:28]} Ra6 {[%emt 0:00:05]} 44. Bf7 {[%emt 0:00:25]} Kg7 {[%emt 0:00:
04]} 45. Ba2 {[%emt 0:00:18]} Kh6 {[%emt 0:00:04]} 46. Rc4 {[%emt 0:00:08]} Rb6
{[%emt 0:01:17]} 47. Rc7 {[%emt 0:00:16]} Rb4+ {[%emt 0:00:04]} 48. Kg3 {
[%emt 0:00:02]} g4 {[%emt 0:00:23]} 49. Bd5 {[%emt 0:00:57]} Kg5 {[%emt 0:00:
09]} 50. Rg7+ {[%emt 0:00:02]} Kxf5 {[%emt 0:00:08]} 51. e4+ {[%emt 0:00:02]}
Rxe4 {[%emt 0:00:02]} 52. Bxe4+ {[%emt 0:00:01]} Kxe4 {[%emt 0:00:01]} 53.
Rxg4+ {[%emt 0:00:02]} Ke3 {[%emt 0:00:19]} 54. Ra4 {[%emt 0:00:30]} f5 {
[%emt 0:00:07]} 55. Rxa5 Ke4 {[%emt 0:00:28]} 56. Kf2 {[%emt 0:00:25]} Kf4 {
[%emt 0:00:04]} 57. Ke2 {[%emt 0:00:12]} e4 {[%emt 0:00:02]} 58. Rb5 {[%emt 0:
00:13]} Kg4 {[%emt 0:00:06]} 59. Ke3 {[%emt 0:00:04]} Kg5 {[%emt 0:00:04]} 60.
Rb8 {[%emt 0:00:04]} Kg4 {[%emt 0:00:06]} 61. Rg8+ {[%emt 0:00:03]} Kh3 {
[%emt 0:00:00]} 62. Rg5 {[%emt 0:00:03]} 1-0

[Event "European Rapid Championship 2021"]
[Site "Katowice"]
[Date "2021.12.19"]
[Round "9.25"]
[White "Jedrusik, Adam"]
[Black "Wisniewski, Adrian"]
[Result "1/2-1/2"]
[ECO "A45"]
[WhiteElo "1769"]
[BlackElo "2351"]
[Annotator "NA"]
[PlyCount "96"]
[EventDate "2021.12.18"]
[EventType "swiss"]
[EventCountry "POL"]
[SourceTitle "playchess.com"]
[Source "ChessBase"]
[SourceQuality "1"]
[TimeControl "900+10"]

1. d4 {[%emt 0:00:01]} Nf6 {[%emt 0:00:04]} 2. Bg5 {[%emt 0:00:02]} Ne4 {
[%emt 0:00:37]} 3. Bf4 {[%emt 0:00:02]} d6 {[%emt 0:00:19]} 4. f3 {[%emt 0:00:
11]} Nf6 {[%emt 0:00:02]} 5. e4 {[%emt 0:00:01]} g6 {[%emt 0:00:02]} 6. c4 {
[%emt 0:00:12]} Bg7 {[%emt 0:00:01]} 7. Nc3 {[%emt 0:00:01]} O-O {[%emt 0:00:
19]} 8. Qd2 {[%emt 0:00:42]} a6 {[%emt 0:00:01]} 9. Nge2 {[%emt 0:00:14]} Nbd7
{[%emt 0:00:02]} 10. Bh6 {[%emt 0:00:25]} c5 {[%emt 0:00:16]} 11. Bxg7 {
[%emt 0:01:15]} Kxg7 {[%emt 0:00:04]} 12. d5 {[%emt 0:00:04]} b5 {[%emt 0:00:
15]} 13. cxb5 {[%emt 0:00:22]} Nb6 {[%emt 0:00:01]} 14. Nc1 {[%emt 0:01:49]}
axb5 {[%emt 0:01:16]} 15. Bxb5 {[%emt 0:00:02]} Ba6 {[%emt 0:00:05]} 16. Bxa6 {
[%emt 0:02:31]} Rxa6 {[%emt 0:00:03]} 17. O-O {[%emt 0:00:02]} Nfd7 {[%emt 0:
00:46]} 18. b3 {[%emt 0:00:12]} Qa8 {[%emt 0:02:32]} 19. N1e2 {[%emt 0:00:25]}
Kg8 {[%emt 0:01:02]} 20. f4 {[%emt 0:01:55]} Nf6 {[%emt 0:03:57]} 21. Rfe1 {
[%emt 0:02:50]} Rc8 {[%emt 0:00:31]} 22. Rad1 {[%emt 0:00:25]} Nfd7 {[%emt 0:
02:07]} 23. Kh1 {[%emt 0:01:24]} c4 {[%emt 0:01:41]} 24. b4 {[%emt 0:00:01]}
Na4 {[%emt 0:00:08]} 25. b5 {[%emt 0:01:22]} Nxc3 {[%emt 0:00:45]} 26. Nxc3 {
[%emt 0:00:03]} Ra3 {[%emt 0:00:01]} 27. e5 {[%emt 0:00:01]} Qa5 {[%emt 0:00:
05]} 28. Rc1 {[%emt 0:00:44]} Nc5 {[%emt 0:00:00]} 29. Rc2 {[%emt 0:00:31]} Nd3
{[%emt 0:00:26]} 30. Re4 {[%emt 0:00:01]} Nb4 {[%emt 0:00:45]} 31. Rb2 {
[%emt 0:00:02]} Nd3 {[%emt 0:00:08]} 32. Rc2 {[%emt 0:00:02]} Rxc3 {[%emt 0:00:
49]} 33. Rxc3 {[%emt 0:00:18]} Nf2+ {[%emt 0:00:01]} 34. Qxf2 {[%emt 0:00:01]}
Qxc3 {[%emt 0:00:01]} 35. exd6 {[%emt 0:00:37]} exd6 {[%emt 0:00:01]} 36. h3 {
[%emt 0:00:00]} Qd3 {[%emt 0:00:11]} 37. Qd4 {[%emt 0:01:23]} Qb1+ {[%emt 0:00:
04]} 38. Kh2 {[%emt 0:00:01]} Qxb5 {[%emt 0:00:00]} 39. Qc3 {[%emt 0:00:01]}
Qxd5 {[%emt 0:00:04]} 40. Rd4 {[%emt 0:00:01]} Qc5 {[%emt 0:00:02]} 41. a4 {
[%emt 0:00:14]} d5 {[%emt 0:00:01]} 42. f5 {[%emt 0:00:02]} Re8 {[%emt 0:00:10]
} 43. Rd1 {[%emt 0:00:35]} Rd8 {[%emt 0:00:58]} 44. Rd4 {[%emt 0:00:08]} Qd6+ {
[%emt 0:00:07]} 45. Kh1 {[%emt 0:00:01]} Qe5 {[%emt 0:00:02]} 46. fxg6 {
[%emt 0:00:08]} hxg6 {[%emt 0:00:01]} 47. Rxc4 {[%emt 0:00:14]} d4 {[%emt 0:00:
54]} 48. Qd3 {[%emt 0:00:21]} Qe1+ {[%emt 0:00:20]} 1/2-1/2

[Event "European Rapid Championship 2021"]
[Site "Katowice"]
[Date "2021.12.19"]
[Round "9.26"]
[White "Fus, Jakub"]
[Black "Seemann, Jakub"]
[Result "1/2-1/2"]
[ECO "B20"]
[WhiteElo "2252"]
[BlackElo "1862"]
[Annotator "NA"]
[PlyCount "62"]
[EventDate "2021.12.18"]
[EventType "swiss"]
[EventCountry "POL"]
[SourceTitle "playchess.com"]
[Source "ChessBase"]
[SourceQuality "1"]
[TimeControl "900+10"]

1. e4 {[%emt 0:00:01]} c5 {[%emt 0:00:18]} 2. Be2 {[%emt 0:00:02]} Nc6 {
[%emt 0:00:10]} 3. f4 {[%emt 0:00:02]} d6 {[%emt 0:00:07]} 4. Nf3 {[%emt 0:00:
02]} g6 {[%emt 0:00:03]} 5. O-O {[%emt 0:00:03]} Bg7 {[%emt 0:00:02]} 6. Na3 {
[%emt 0:00:31]} Nh6 {[%emt 0:00:45]} 7. c3 {[%emt 0:00:36]} f5 {[%emt 0:00:07]}
8. d3 {[%emt 0:00:29]} O-O {[%emt 0:00:04]} 9. Kh1 {[%emt 0:00:21]} Nf7 {
[%emt 0:00:17]} 10. exf5 {[%emt 0:00:12]} Bxf5 {[%emt 0:00:46]} 11. d4 {
[%emt 0:00:14]} cxd4 {[%emt 0:00:10]} 12. cxd4 {[%emt 0:00:01]} d5 {[%emt 0:00:
20]} 13. Be3 {[%emt 0:04:53]} Nd6 {[%emt 0:00:22]} 14. Qb3 {[%emt 0:00:58]} e6
{[%emt 0:00:09]} 15. Nb5 {[%emt 0:00:04]} Be4 {[%emt 0:01:43]} 16. Nxd6 {
[%emt 0:00:17]} Qxd6 {[%emt 0:00:02]} 17. Ne5 {[%emt 0:00:02]} Ne7 {[%emt 0:00:
30]} 18. Rac1 {[%emt 0:01:18]} Nf5 {[%emt 0:00:46]} 19. Kg1 {[%emt 0:00:24]}
Qb6 {[%emt 0:00:26]} 20. Qc3 {[%emt 0:01:29]} Nxe3 {[%emt 0:00:13]} 21. Qxe3 {
[%emt 0:00:01]} Bxe5 {[%emt 0:00:28]} 22. fxe5 {[%emt 0:00:03]} Qxb2 {[%emt 0:
00:22]} 23. a3 {[%emt 0:01:14]} Rac8 {[%emt 0:02:14]} 24. Rxc8 {[%emt 0:01:30]}
Rxc8 {[%emt 0:00:02]} 25. Qf2 {[%emt 0:00:01]} Bf5 {[%emt 0:00:09]} 26. g4 {
[%emt 0:00:09]} Rc2 {[%emt 0:00:27]} 27. gxf5 {[%emt 0:01:00]} Rxe2 {[%emt 0:
00:01]} 28. Qh4 {[%emt 0:00:07]} Re4 29. Qd8+ Kg7 30. f6+ Kh6 31. Qf8+ Kg5
1/2-1/2

[Event "European Rapid Championship 2021"]
[Site "Katowice"]
[Date "2021.12.19"]
[Round "9.26"]
[White "Jazdanovs, Aleksandrs"]
[Black "Golubovskis, Maksims"]
[Result "0-1"]
[ECO "B22"]
[WhiteElo "2089"]
[BlackElo "2210"]
[Annotator "NA"]
[PlyCount "36"]
[EventDate "2021.12.18"]
[EventType "swiss"]
[EventCountry "POL"]
[SourceTitle "playchess.com"]
[Source "ChessBase"]
[SourceQuality "1"]
[TimeControl "900+10"]

1. e4 {[%emt 0:00:01]} c5 {[%emt 0:00:00]} 2. c3 {[%emt 0:00:01]} Qa5 {[%emt 0:
00:20]} 3. Nf3 {[%emt 0:00:35]} g6 {[%emt 0:00:27]} 4. Bc4 {[%emt 0:04:19]} Bg7
{[%emt 0:01:06]} 5. O-O {[%emt 0:00:06]} Nh6 {[%emt 0:01:20]} 6. d4 {[%emt 0:
00:58]} O-O {[%emt 0:01:38]} 7. Bg5 {[%emt 0:00:26]} cxd4 {[%emt 0:01:27]} 8.
Qc1 {[%emt 0:02:30]} Ng4 {[%emt 0:04:20]} 9. Bxe7 {[%emt 0:00:16]} Re8 {
[%emt 0:00:16]} 10. Bb4 {[%emt 0:00:04]} Qh5 {[%emt 0:01:55]} 11. Qf4 {[%emt 0:
00:49]} Nh6 {[%emt 0:01:43]} 12. Ng5 {[%emt 0:00:41]} Be5 {[%emt 0:00:19]} 13.
Bxf7+ {[%emt 0:02:30]} Kg7 {[%emt 0:00:18]} 14. Bf8+ Kh8 15. Bxe8 {[%emt 0:03:
12]} Bxf4 {[%emt 0:00:06]} 16. g3 {[%emt 0:00:01]} Bxg5 {[%emt 0:00:43]} 17.
Bxh6 {[%emt 0:00:17]} Bxh6 {[%emt 0:00:15]} 18. cxd4 {[%emt 0:00:03]} Nc6 {
[%emt 0:00:01]} 0-1